fUSD/lending_fUSD_20260228
["ID","MTS","AMOUNT","RATE_DAILY","PERIOD"]
[406928224,1772284246572,-515.31004766,0.00016099,2]
[406928225,1772284246581,-1001.57340438,0.00016099,2]
[406928226,1772284246590,-2550.78546123,0.00016099,2]
[406928227,1772284246599,-2500.0,0.00016099,2]
[406928228,1772284246608,-2500.0,0.00016099,2]
[406928229,1772284246617,-9999.99,0.00016116,2]
[406928231,1772284246626,-719.04747942,0.00016136,2]
[406928233,1772284246635,-745.65223616,0.00016191,2]
[406928235,1772284246644,-160.0,0.00016191,2]
[406928237,1772284246654,-174.04581251,0.00016191,2]
[406928239,1772284246663,-773.2413689,0.00016246,2]
[406928241,1772284246672,-801.85129955,0.00016301,2]
[406928243,1772284246681,-831.51979763,0.00016356,2]
[406928245,1772284246690,-862.28603014,0.00016411,2]
[406928247,1772284246700,-3625.57879218,0.00016424,2]
[406928249,1772284246709,-20182.76517958,0.00016435,2]
[406928251,1772284246718,-453.00544137,0.00016436,2]
[406928253,1772284246727,-1378.0,0.00016438,2]
[406928255,1772284246737,-266.81662109,0.00016438,2]
[406928257,1772284246746,-894.19061326,0.00016466,2]
[406928259,1772284246756,-1378.0,0.00016493,2]
[406928261,1772284246765,-927.27566595,0.00016521,2]
[406928263,1772284246774,-1378.0,0.00016548,2]
[406928265,1772284246783,-961.58486559,0.00016576,2]
[406928267,1772284246793,-1378.0,0.00016602,2]
[406928269,1772284246802,-997.16350561,0.00016631,2]
[406928271,1772284246811,-1990.28139264,0.00016647,2]
[406928273,1772284246820,-1798.53948142,0.00016647,2]
[406928274,1772284246829,-279.13777388,0.00016647,2]
[406928275,1772284246837,-3000.0,0.00016647,2]
[406928276,1772284246847,-1378.0,0.00016657,2]
[406928277,1772284246857,-3658.72327924,0.00016665,2]
[406928278,1772284246866,-1378.0,0.00016712,2]
[406928279,1772284246875,-1378.0,0.00016767,2]
[406928280,1772284246885,-308.99,0.00016782,2]
[406928281,1772284246894,-2000.0,0.0001681,2]
[406928282,1772284246903,-1378.0,0.00016822,2]
[406928283,1772284246913,-1378.0,0.00016876,2]
[406928284,1772284246922,-2000.0,0.000169,2]
[406928285,1772284246931,-2000.0,0.000169,2]
[406928286,1772284246940,-3625.57879218,0.0001691,2]
[406928287,1772284246949,-2000.0,0.0001691,2]
[406928288,1772284246959,-29999.99,0.00016922,2]
[406928289,1772284246968,-915.2,0.00016922,2]
[406928290,1772284246977,-1555.75,0.00016922,2]
[406928291,1772284246986,-20182.76517958,0.00016923,2]
[406928292,1772284246995,-1378.0,0.00016931,2]
[406928293,1772284247004,-1378.0,0.00016986,2]
[406928294,1772284247013,-300.0,0.00017,2]
[406928295,1772284247022,-147513.0296702,0.00017,2]
[406928296,1772284247031,-2000.0,0.0001701,2]
[406928297,1772284247040,-1378.0,0.00017041,2]
[406928298,1772284247049,-681.81,0.00017095,2]
[406928299,1772284247059,-500.0,0.00017095,2]
[406928300,1772284247068,-1378.0,0.00017096,2]
[406928301,1772284247077,-1600.0,0.00017098,2]
[406928302,1772284247087,-2000.0,0.000171,2]
[406928303,1772284247096,-2000.0,0.000171,2]
[406928304,1772284247105,-2000.0,0.000171,2]
[406928305,1772284247114,-2008.0,0.000171,2]
[406928306,1772284247123,-500.0,0.00017109,2]
[406928307,1772284247132,-1500.0,0.0001711,2]
[406928308,1772284247142,-1500.0,0.0001711,2]
[406928309,1772284247151,-2632.101218,0.0001711,2]
[406928310,1772284247161,-1378.0,0.0001715,2]
[406928311,1772284247170,-453.00544137,0.00017168,2]
[406928312,1772284247180,-3500.0,0.00017195,2]
[406928313,1772284247189,-1378.0,0.00017205,2]
[406928314,1772284247198,-256.0,0.00017235,2]
[406928315,1772284247207,-1378.0,0.0001726,2]
[406928316,1772284247216,-3658.72327924,0.00017283,2]
[406928317,1772284247225,-1378.0,0.00017315,2]
[406928318,1772284247235,-166.66,0.00017347,2]
[406928319,1772284247244,-1378.0,0.0001737,2]
[406928320,1772284247256,-3625.57879218,0.00017396,2]
[406928321,1772284247265,-20182.76517958,0.00017411,2]
[406928322,1772284247275,-1378.0,0.00017424,2]
[406928323,1772284247284,-250.0,0.00017477,2]
[406928324,1772284247295,-1378.0,0.00017479,2]
[406928325,1772284247304,-694.42441671,0.000175,3]
[406928326,1772284247313,-5616.53495309,0.000175,3]
[406928327,1772284247322,-1378.0,0.00017534,2]
[406928328,1772284247332,-1378.0,0.00017589,2]
[406928329,1772284247341,-50000.0,0.0001759,2]
[406928330,1772284247350,-1378.0,0.00017643,2]
[406928331,1772284247360,-168.0,0.00017698,2]
[406928332,1772284247369,-1401.69339842,0.00017698,2]
[406928333,1772284247378,-168.0,0.00017703,2]
[406928334,1772284247387,-3000.0,0.00017743,2]
[406928335,1772284247396,-1000.0,0.00017808,2]
[406928336,1772284247406,-5000.0,0.00017808,2]
[406928337,1772284247415,-500.0,0.00017808,2]
[406928338,1772284247424,-500.0,0.00017808,2]
[406928339,1772284247435,-500.0,0.00017808,2]
[406928340,1772284247444,-500.0,0.00017808,2]
[406928341,1772284247454,-500.0,0.00017808,2]
[406928342,1772284247463,-500.0,0.00017808,2]
[406928343,1772284247473,-500.0,0.00017808,2]
[406928344,1772284247482,-500.0,0.00017808,2]
[406928345,1772284247491,-500.0,0.00017808,2]
[406928346,1772284247500,-500.0,0.00017808,2]
[406928347,1772284247509,-500.0,0.00017808,2]
[406928348,1772284247519,-500.0,0.00017808,2]
[406928349,1772284247528,-500.0,0.00017808,2]
[406928350,1772284247537,-500.0,0.00017808,2]
[406928351,1772284247546,-500.0,0.00017808,2]
[406928352,1772284247555,-500.0,0.00017808,2]
[406928353,1772284247564,-500.0,0.00017808,2]
[406928354,1772284247574,-632.39304815,0.00017808,2]
[406928355,1772284247583,-500.0,0.00017808,2]
[406928356,1772284247592,-500.0,0.00017808,2]
[406928357,1772284247601,-500.0,0.00017808,2]
[406928358,1772284247610,-500.0,0.00017808,2]
[406928359,1772284247619,-800.0,0.00017808,2]
[406928360,1772284247628,-372.998721,0.00017813,2]
[406928361,1772284247637,-14940.76909115,0.0001783,2]
[406928362,1772284247646,-733.851,0.00017833,2]
[406928363,1772284247655,-168.0,0.00017849,2]
[406928364,1772284247664,-500.0,0.00017863,2]
[406928365,1772284247674,-10000.0,0.00017882,2]
[406928366,1772284247683,-3625.57879218,0.00017882,2]
[406928367,1772284247692,-1075.2658489,0.0001789,2]
[406928368,1772284247701,-721.68,0.00017898,2]
[406928369,1772284247711,-500.0,0.00017898,2]
[406928370,1772284247721,-20182.76517958,0.00017899,2]
[406928371,1772284247729,-453.00544137,0.000179,2]
[406928372,1772284247739,-150.0,0.000179,2]
[406928373,1772284247748,-150.0,0.000179,2]
[406928374,1772284247757,-150.0,0.000179,2]
[406928375,1772284247766,-317.53143114,0.000179,2]
[406928376,1772284247776,-150.0,0.000179,2]
[406928377,1772284247784,-150.0,0.000179,2]
[406928378,1772284247793,-186.01588918,0.000179,2]
[406928379,1772284247803,-1023.23499725,0.000179,2]
[406928380,1772284247812,-5562.57052734,0.000179,2]
[406928381,1772284247821,-3658.72327924,0.000179,2]
[406928382,1772284247830,-681.81,0.0001791,2]
[406928383,1772284247840,-512.80115338,0.0001791,2]
[406928384,1772284247849,-500.0,0.00017918,2]
[406928385,1772284247858,-166.66,0.0001792,2]
[406928386,1772284247867,-500.0,0.00017972,2]
[406928387,1772284247876,-219.4686001,0.00017982,2]
[406928388,1772284247885,-81676.5461434,0.00017982,2]
[406928389,1772284247893,-1385.8125889,0.00017982,2]
[406928390,1772284247904,-4879.1712407,0.00017982,2]
[406928391,1772284247913,-17511.6936978,0.00017982,2]
[406928392,1772284247922,-4779.2429106,0.00017982,2]
[406928393,1772284247932,-163.6142786,0.0001799,2]
[406928394,1772284247941,-681.81,0.00017999,2]
[406928395,1772284247949,-681.81,0.00017999,2]
[406928396,1772284247959,-681.81,0.00017999,2]
[406928397,1772284247967,-681.81,0.00017999,2]
[406928398,1772284247976,-681.81,0.00017999,2]
[406928399,1772284247985,-681.81,0.00017999,2]
[406928400,1772284247994,-681.81,0.00017999,2]
[406928401,1772284248003,-681.81,0.00017999,2]
[406928402,1772284248012,-681.81,0.00017999,2]
[406928403,1772284248021,-681.81,0.00017999,2]
[406928404,1772284248030,-681.81,0.00017999,2]
[406928405,1772284248039,-681.81,0.00017999,2]
[406928406,1772284248048,-681.81,0.00017999,2]
[406928407,1772284248058,-681.89521615,0.00017999,2]
[406928408,1772284248068,-300.0,0.00017999,2]
[406928409,1772284248078,-500.0,0.00017999,2]
[406928410,1772284248086,-500.0,0.00017999,2]
[406928411,1772284248095,-281.09297896,0.00017999,2]
[406928412,1772284248104,-721.68,0.00017999,2]
[406928413,1772284248113,-721.68,0.00017999,2]
[406928414,1772284248122,-721.68,0.00017999,2]
[406928415,1772284248131,-721.68,0.00017999,2]
[406928416,1772284248141,-721.82543711,0.00017999,2]
[406928417,1772284248150,-500.0,0.00017999,2]
[406928418,1772284248159,-500.0,0.00017999,2]
[406928419,1772284248168,-500.0,0.00017999,2]
[406928420,1772284248177,-305.84,0.00017999,2]
[406928421,1772284248186,-300.0,0.00017999,2]
[406928422,1772284248197,-292.6907697,0.00017999,2]
[406928423,1772284248206,-195.66587194,0.00017999,2]
[406928424,1772284248215,-1808421.19590952,0.00018,2]
[406928425,1772284248353,-2818.88970174,0.00018,2]
[406928426,1772284248365,-518490.45610829,0.00018,2]
[406928427,1772284248376,-1012.19947126,0.00018,2]
[406928428,1772284248387,-33110.0,0.00018,2]
[406928429,1772284248435,-18025.80289443,0.00018,2]
[406928430,1772284248447,-311.24214142,0.00018,2]
[406928431,1772284248461,-1366.3796,0.00018,2]
[406928432,1772285062228,253.4,0.000171,117]
[406928435,1772285431819,-155.35,0.00010309,2]
[406928437,1772285431829,-235.0,0.00010309,2]
[406928439,1772285431839,-1206.70436718,0.00011329,2]
[406928441,1772285431878,-558.27538772,0.00011329,2]
[406928442,1772285431932,-1352.03764723,0.00011329,2]
[406928443,1772285431942,-580.0,0.00011339,2]
[406928444,1772285431952,-300.0,0.00011339,2]
[406928445,1772285431961,-300.0,0.00011339,2]
[406928446,1772285431971,-1200.0,0.00011339,2]
[406928447,1772285431981,-300.0,0.00011339,2]
[406928448,1772285431990,-500.0,0.0001134,2]
[406928449,1772285432000,-250.0,0.0001134,2]
[406928450,1772285432009,-1435.93,0.00011507,2]
[406928451,1772285432019,-500.0,0.0001207,2]
[406928452,1772285432029,-167.0,0.00012456,2]
[406928453,1772285432039,-1200.0,0.00012473,2]
[406928454,1772285432048,-1500.0,0.00012616,2]
[406928455,1772285432057,-152.08,0.00012699,2]
[406928456,1772285432067,-1000.0,0.00013074,2]
[406928457,1772285432077,-163.6142786,0.00013198,2]
[406928458,1772285432087,-32719.1634411,0.00013208,2]
[406928459,1772285432098,-9206.66900599,0.00013208,2]
[406928460,1772285432109,-640.98,0.00013208,2]
[406928461,1772285432123,-2382.46942602,0.00013208,2]
[406928462,1772285432134,-312.7,0.00013208,2]
[406928494,1772285440194,-305.58220724,0.00013207,2]
[406928495,1772285440204,-131.01579397,0.00013207,2]
[406928496,1772285440216,-368.98420603,0.00013207,2]
[406928497,1772285440226,-500.0,0.00013207,2]
[406928498,1772285440236,-500.0,0.00013207,2]
[406928499,1772285440246,-633.60462729,0.00013207,2]
[406928500,1772285440255,-500.0,0.00013207,2]
[406928501,1772285440265,-448.09249481,0.00013207,2]
[406928502,1772285440276,-51.90750519,0.00013207,2]
[406928503,1772285440286,-562.21379612,0.00013207,2]
[406928504,1772285440295,-80.87869469,0.00013207,2]
[406928505,1772285440306,-88.90431122,0.00013207,2]
[406928506,1772285440316,-500.0,0.00013207,2]
[406928507,1772285440325,-454.95352348,0.00013207,2]
[406928508,1772285440336,-45.04647652,0.00013207,2]
[406928509,1772285440345,-633.60462729,0.00013207,2]
[406928510,1772285440354,-500.0,0.00013207,2]
[406928511,1772285440363,-316.7905715,0.00013207,2]
[406928512,1772285440373,-633.60462729,0.00013207,2]
[406928513,1772285440383,-161.08883825,0.00013207,2]
[406928514,1772285440393,-500.0,0.00013207,2]
[406928515,1772285440402,-500.0,0.00013207,2]
[406928516,1772285440411,-633.60462729,0.00013207,2]
[406928517,1772285440421,-500.0,0.00013207,2]
[406928518,1772285440430,-500.0,0.00013207,2]
[406928519,1772285440440,-633.60462729,0.00013207,2]
[406928520,1772285440450,-500.0,0.00013207,2]
[406928521,1772285440459,-500.0,0.00013207,2]
[406928522,1772285440468,-633.60462729,0.00013207,2]
[406928523,1772285440478,-640.38354289,0.00013207,2]
[406928524,1772285440487,-633.60462729,0.00013207,2]
[406928525,1772285440497,-500.0,0.00013207,2]
[406928526,1772285440506,-633.60462729,0.00013207,2]
[406928527,1772285440515,-633.60462729,0.00013207,2]
[406928528,1772285440525,-633.60462729,0.00013207,2]
[406928529,1772285440534,-633.60462729,0.00013207,2]
[406928530,1772285440549,-633.60462729,0.00013207,2]
[406928531,1772285440565,-633.60462729,0.00013207,2]
[406928532,1772285440574,-633.60462729,0.00013207,2]
[406928533,1772285440585,-633.60462729,0.00013207,2]
[406928534,1772285440594,-633.60462729,0.00013207,2]
[406928535,1772285440603,-633.60462729,0.00013207,2]
[406928536,1772285440613,-633.60462729,0.00013207,2]
[406928537,1772285440625,-633.60462729,0.00013207,2]
[406928538,1772285440635,-633.60462729,0.00013207,2]
[406928539,1772285440644,-633.60462729,0.00013207,2]
[406928540,1772285440653,-633.60462729,0.00013207,2]
[406928541,1772285440662,-633.60462729,0.00013207,2]
[406928542,1772285440672,-633.60462729,0.00013207,2]
[406928543,1772285440681,-633.60462729,0.00013207,2]
[406928544,1772285440690,-633.60462729,0.00013207,2]
[406928545,1772285440699,-633.60462729,0.00013207,2]
[406928546,1772285440709,-633.60462729,0.00013207,2]
[406928547,1772285440718,-633.60462729,0.00013207,2]
[406928548,1772285440727,-633.60462729,0.00013207,2]
[406928549,1772285440736,-633.60462729,0.00013207,2]
[406928550,1772285440746,-633.60462729,0.00013207,2]
[406928551,1772285440756,-633.60462729,0.00013207,2]
[406928552,1772285440766,-633.60462729,0.00013207,2]
[406928553,1772285440775,-633.60462729,0.00013207,2]
[406928554,1772285440784,-633.60462729,0.00013207,2]
[406928555,1772285440794,-633.60462729,0.00013207,2]
[406928556,1772285440804,-633.60462729,0.00013207,2]
[406928557,1772285440813,-633.60462729,0.00013207,2]
[406928558,1772285440822,-633.60462729,0.00013207,2]
[406928559,1772285440832,-633.60462729,0.00013207,2]
[406928560,1772285440842,-633.60462729,0.00013207,2]
[406928561,1772285440851,-633.60462729,0.00013207,2]
[406928562,1772285440860,-633.60462729,0.00013207,2]
[406928563,1772285440870,-633.60462729,0.00013207,2]
[406928564,1772285440879,-633.60462729,0.00013207,2]
[406928565,1772285440888,-633.60462729,0.00013207,2]
[406928566,1772285440898,-633.60462729,0.00013207,2]
[406928567,1772285440907,-1454738.01812689,0.00013208,2]
[406928568,1772285440916,-1852.42,0.00013239,2]
[406928569,1772285440925,-3674.39,0.00013299,2]
[406928571,1772285440934,-1543.68,0.00013299,2]
[406928572,1772285440943,-150.99,0.00013299,2]
[406928573,1772285440953,-4568.2,0.00013299,2]
[406928574,1772285440961,-9999.99,0.00013299,2]
[406928575,1772285440971,-150.99,0.00013299,2]
[406928576,1772285440980,-350.01,0.00013299,2]
[406928578,1772285440989,-1128.82816723,0.000133,2]
[406928580,1772285440998,-2640.00147805,0.000133,2]
[406928581,1772285441007,-815.331,0.000133,2]
[406928583,1772285441016,-2987.78,0.000133,2]
[406928585,1772285441025,-4133.7097,0.00013307,2]
[406928588,1772285441034,-2500.0,0.00013308,2]
[406928590,1772285441043,-453.00544138,0.00013308,2]
[406928591,1772285441052,-317.53143114,0.00013308,2]
[406928593,1772285441061,-3625.57879225,0.00013308,2]
[406928596,1772285441071,-3658.72327924,0.00013308,2]
[406928598,1772285441080,-1023.23499727,0.00013308,2]
[406928600,1772285441089,-5562.57052734,0.00013308,2]
[406928601,1772285441098,-163.6142786,0.00013398,2]
[406928604,1772285441108,-151.0,0.000134,2]
[406928606,1772285441117,-151.0,0.000134,2]
[406928607,1772285441126,-500.0,0.000134,2]
[406928609,1772285441135,-151.0,0.000134,2]
[406928611,1772285441145,-500.0,0.000134,2]
[406928613,1772285441154,-151.0,0.000134,2]
[406928614,1772285441163,-500.0,0.000134,2]
[406928615,1772285441172,-151.0,0.000134,2]
[406928616,1772285441181,-500.0,0.000134,2]
[406928617,1772285441191,-151.0,0.000134,2]
[406928618,1772285441200,-500.0,0.000134,2]
[406928619,1772285441209,-151.0,0.000134,2]
[406928620,1772285441218,-500.0,0.000134,2]
[406928621,1772285441227,-151.0,0.000134,2]
[406928622,1772285441235,-500.0,0.000134,2]
[406928623,1772285441244,-151.0,0.000134,2]
[406928624,1772285441253,-500.0,0.000134,2]
[406928625,1772285441262,-151.0,0.000134,2]
[406928626,1772285441272,-500.0,0.000134,2]
[406928627,1772285441281,-151.0,0.000134,2]
[406928628,1772285441290,-500.0,0.000134,2]
[406928629,1772285441300,-151.0,0.000134,2]
[406928630,1772285441309,-500.0,0.000134,2]
[406928631,1772285441319,-500.0,0.000134,2]
[406928632,1772285441328,-459.27341703,0.00013407,2]
[406928633,1772285441337,-500.0,0.00013407,2]
[406928634,1772285441346,-500.0,0.00013407,2]
[406928635,1772285441355,-505.0171713,0.00013407,2]
[406928636,1772285441364,-500.0,0.00013407,2]
[406928637,1772285441373,-508.9520738,0.00013407,2]
[406928638,1772285441382,-500.0,0.00013407,2]
[406928639,1772285441392,-500.0,0.00013407,2]
[406928640,1772285441401,-500.0,0.00013407,2]
[406928641,1772285441410,-500.0,0.00013407,2]
[406928642,1772285441420,-500.0,0.00013407,2]
[406928643,1772285441429,-500.0,0.00013407,2]
[406928644,1772285441438,-2500000.0,0.00013408,2]
[406928645,1772285441447,-32888.5933,0.00013508,2]
[406928646,1772285441456,-1000.0,0.00013508,2]
[406928647,1772285441465,-250.0,0.00013621,2]
[406928648,1772285441474,-500.0,0.00013698,2]
[406928649,1772285441483,-500.0,0.00013698,2]
[406928650,1772285441492,-500.0,0.00013698,2]
[406928651,1772285441501,-500.0,0.00013698,2]
[406928652,1772285441510,-500.0,0.00013698,2]
[406928653,1772285441520,-500.0,0.00013698,2]
[406928654,1772285441530,-500.0,0.00013698,2]
[406928655,1772285441540,-500.0,0.00013698,2]
[406928656,1772285441552,-500.0,0.00013698,2]
[406928657,1772285441561,-500.0,0.00013698,2]
[406928658,1772285441570,-500.0,0.00013698,2]
[406928659,1772285441579,-500.0,0.00013698,2]
[406928660,1772285441588,-500.0,0.00013698,2]
[406928661,1772285441597,-440.49444221,0.00013698,2]
[406928662,1772285441606,-500.0,0.00013698,2]
[406928663,1772285441617,-500.0,0.00013698,2]
[406928664,1772285441626,-500.0,0.00013698,2]
[406928665,1772285441636,-500.0,0.00013698,2]
[406928666,1772285441645,-500.0,0.00013698,2]
[406928667,1772285441654,-500.0,0.00013698,2]
[406928668,1772285441663,-500.0,0.00013698,2]
[406928669,1772285441672,-500.0,0.00013698,2]
[406928670,1772285441681,-500.0,0.00013698,2]
[406928671,1772285441690,-500.0,0.00013698,2]
[406928672,1772285441699,-508.5684283,0.00013698,2]
[406928673,1772285441708,-500.0,0.00013698,2]
[406928674,1772285441717,-500.0,0.00013698,2]
[406928675,1772285441726,-500.0,0.00013698,2]
[406928676,1772285441735,-500.0,0.00013698,2]
[406928677,1772285441744,-500.0,0.00013698,2]
[406928678,1772285441754,-500.0,0.00013698,2]
[406928679,1772285441763,-500.0,0.00013698,2]
[406928680,1772285441773,-500.0,0.00013698,2]
[406928681,1772285441783,-500.0,0.00013698,2]
[406928682,1772285441792,-500.0,0.00013698,2]
[406928683,1772285441802,-721.68,0.00013698,2]
[406928684,1772285441811,-721.68,0.00013698,2]
[406928685,1772285441820,-721.68,0.00013698,2]
[406928686,1772285441830,-721.68,0.00013698,2]
[406928687,1772285441840,-721.68,0.00013698,2]
[406928688,1772285441850,-721.68,0.00013698,2]
[406928689,1772285441859,-721.68,0.00013698,2]
[406928690,1772285441868,-721.68,0.00013698,2]
[406928691,1772285441877,-721.68,0.00013698,2]
[406928692,1772285441890,-721.68,0.00013698,2]
[406928693,1772285441901,-500.0,0.00013698,2]
[406928694,1772285441911,-500.0,0.00013698,2]
[406928695,1772285441921,-500.0,0.00013698,2]
[406928696,1772285441944,-500.0,0.00013698,2]
[406928697,1772285441965,-500.0,0.00013698,2]
[406928698,1772285442113,-500.0,0.00013698,2]
[406928699,1772285442124,-500.0,0.00013698,2]
[406928700,1772285442144,-500.0,0.00013698,2]
[406928701,1772285442155,-500.0,0.00013698,2]
[406928702,1772285442164,-500.0,0.00013698,2]
[406928703,1772285442175,-500.0,0.00013698,2]
[406928704,1772285442184,-500.0,0.00013698,2]
[406928705,1772285442193,-500.0,0.00013698,2]
[406928706,1772285442203,-500.0,0.00013698,2]
[406928707,1772285442212,-500.0,0.00013698,2]
[406928708,1772285442222,-500.0,0.00013698,2]
[406928709,1772285442231,-500.0,0.00013698,2]
[406928710,1772285442240,-500.0,0.00013698,2]
[406928711,1772285442249,-500.0,0.00013698,2]
[406928712,1772285442259,-500.0,0.00013698,2]
[406928713,1772285442268,-500.0,0.00013698,2]
[406928714,1772285442286,-500.0,0.00013698,2]
[406928715,1772285442307,-500.0,0.00013698,2]
[406928716,1772285442328,-500.0,0.00013698,2]
[406928717,1772285442348,-500.0,0.00013698,2]
[406928718,1772285442359,-500.0,0.00013698,2]
[406928719,1772285442369,-500.0,0.00013698,2]
[406928720,1772285442384,-500.0,0.00013698,2]
[406928721,1772285442400,-500.0,0.00013698,2]
[406928722,1772285442410,-500.0,0.00013698,2]
[406928723,1772285442423,-500.0,0.00013698,2]
[406928724,1772285442442,-500.0,0.00013698,2]
[406928725,1772285442454,-500.0,0.00013698,2]
[406928726,1772285442465,-500.0,0.00013698,2]
[406928727,1772285442477,-500.0,0.00013698,2]
[406928728,1772285442488,-500.0,0.00013698,2]
[406928729,1772285442498,-500.0,0.00013698,2]
[406928730,1772285442507,-500.0,0.00013698,2]
[406928731,1772285442519,-500.0,0.00013698,2]
[406928732,1772285442531,-500.0,0.00013698,2]
[406928733,1772285442543,-500.0,0.00013698,2]
[406928734,1772285442563,-500.0,0.00013698,2]
[406928735,1772285442574,-500.0,0.00013698,2]
[406928736,1772285442587,-595.16967246,0.00013698,2]
[406928737,1772285442602,-500.0,0.00013698,2]
[406928738,1772285442615,-500.0,0.00013698,2]
[406928739,1772285442626,-219.67514616,0.00013698,2]
[406928740,1772285442640,-500.0,0.00013698,2]
[406928741,1772285442651,-624.58042463,0.00013698,2]
[406928742,1772285442663,-500.0,0.00013698,2]
[406928743,1772285442677,-500.0,0.00013698,2]
[406928744,1772285442687,-500.0,0.00013698,2]
[406928745,1772285442699,-500.0,0.00013698,2]
[406928746,1772285442710,-500.0,0.00013698,2]
[406928747,1772285442720,-500.0,0.00013698,2]
[406928748,1772285442730,-500.0,0.00013698,2]
[406928749,1772285442743,-500.0,0.00013698,2]
[406928750,1772285442754,-500.0,0.00013698,2]
[406928751,1772285442769,-500.0,0.00013698,2]
[406928752,1772285442779,-500.0,0.00013698,2]
[406928753,1772285442790,-500.0,0.00013698,2]
[406928754,1772285442802,-500.0,0.00013698,2]
[406928755,1772285442813,-500.0,0.00013698,2]
[406928756,1772285442822,-500.0,0.00013698,2]
[406928757,1772285442832,-500.0,0.00013698,2]
[406928758,1772285442843,-500.0,0.00013698,2]
[406928760,1772285442853,-500.0,0.00013698,2]
[406928762,1772285442864,-500.0,0.00013698,2]
[406928763,1772285442875,-500.0,0.00013698,2]
[406928764,1772285442885,-500.0,0.00013698,2]
[406928765,1772285442895,-500.0,0.00013698,2]
[406928766,1772285442904,-500.0,0.00013698,2]
[406928768,1772285442915,-500.0,0.00013698,2]
[406928769,1772285442923,-500.0,0.00013698,2]
[406928770,1772285442934,-500.0,0.00013698,2]
[406928771,1772285442943,-500.0,0.00013698,2]
[406928772,1772285442953,-500.0,0.00013698,2]
[406928773,1772285442965,-500.0,0.00013698,2]
[406928774,1772285442975,-393.27599865,0.00013698,2]
[406928775,1772285442987,-897.04,0.00013698,2]
[406928776,1772285442998,-897.04,0.00013698,2]
[406928777,1772285443009,-897.04,0.00013698,2]
[406928778,1772285443019,-897.04,0.00013698,2]
[406928779,1772285443030,-897.04,0.00013698,2]
[406928780,1772285443040,-897.04,0.00013698,2]
[406928781,1772285443051,-897.04,0.00013698,2]
[406928782,1772285443061,-897.04,0.00013698,2]
[406928783,1772285443072,-897.04,0.00013698,2]
[406928784,1772285443082,-897.04,0.00013698,2]
[406928785,1772285443093,-897.04,0.00013698,2]
[406928786,1772285443103,-500.0,0.00013698,2]
[406928787,1772285443114,-500.0,0.00013698,2]
[406928788,1772285443124,-500.0,0.00013698,2]
[406928789,1772285443135,-500.0,0.00013698,2]
[406928790,1772285443145,-500.0,0.00013698,2]
[406928791,1772285443156,-439.79063626,0.00013698,2]
[406928792,1772285443164,-500.0,0.00013698,2]
[406928793,1772285443174,-500.0,0.00013698,2]
[406928794,1772285443183,-500.0,0.00013698,2]
[406928795,1772285443194,-500.0,0.00013698,2]
[406928796,1772285443204,-500.0,0.00013698,2]
[406928797,1772285443216,-500.0,0.00013698,2]
[406928798,1772285443227,-500.0,0.00013698,2]
[406928799,1772285443237,-500.0,0.00013698,2]
[406928800,1772285443248,-500.0,0.00013698,2]
[406928801,1772285443258,-500.0,0.00013698,2]
[406928802,1772285443267,-500.0,0.00013698,2]
[406928803,1772285443277,-329.64340271,0.00013698,2]